fUSD/lending_fUSD_20250417
["ID","MTS","AMOUNT","RATE_DAILY","PERIOD"]
[358237689,1744864244175,-1017.69,0.00052054,120]
[358237690,1744864244185,-1133.87,0.00052054,120]
[358237691,1744864244194,-5075.29,0.00052054,120]
[358237692,1744864244204,-245.366859,0.00052054,120]
[358237693,1744864244213,-414.22081782,0.00052054,120]
[358237694,1744864244223,-500.0,0.00052054,120]
[358237695,1744864244232,-500.0,0.00052054,120]
[358237696,1744864244242,-500.0,0.00052054,120]
[358237697,1744864244251,-500.0,0.00052054,120]
[358237698,1744864244260,-533.51,0.00052054,120]
[358237699,1744864244270,-500.0,0.00052054,2]
[358237700,1744864244280,-500.0,0.00052054,120]
[358237701,1744864244290,-500.0,0.00052054,120]
[358237702,1744864244300,-500.0,0.00052054,120]
[358237703,1744864244309,-655.19,0.00052054,120]
[358237704,1744864244319,-1215.74,0.00052054,120]
[358237705,1744864244328,-500.0,0.00052054,120]
[358237706,1744864244338,-500.0,0.00052054,120]
[358237707,1744864244347,-500.0,0.00052054,120]
[358237708,1744864244357,-500.0,0.00052054,120]
[358237709,1744864244366,-702.14,0.00052054,120]
[358237710,1744864244376,-1252.03,0.00052054,35]
[358237711,1744864244386,-500.0,0.00052054,120]
[358237712,1744864244397,-500.0,0.00052054,2]
[358237713,1744864244407,-500.0,0.00052054,120]
[358237714,1744864244416,-500.0,0.00052054,120]
[358237715,1744864244426,-1617.9,0.00052054,120]
[358237716,1744864244435,-1213.04,0.00052054,120]
[358237717,1744864244446,-500.0,0.00052054,120]
[358237718,1744864244456,-1381.37,0.00052054,120]
[358237719,1744864244465,-1860.12,0.00052054,120]
[358237720,1744864244475,-500.0,0.00052054,120]
[358237721,1744864244485,-1480.04,0.00052054,120]
[358237722,1744864244494,-1344.55,0.00052054,120]
[358237723,1744864244504,-780.14,0.00052054,120]
[358237724,1744864244514,-500.0,0.00052054,120]
[358237725,1744864244524,-500.0,0.00052054,120]
[358237726,1744864244533,-660.85,0.00052054,120]
[358237727,1744864244543,-550.02646237,0.00052054,120]
[358237728,1744864244552,-500.0,0.00052054,120]
[358237729,1744864244563,-500.0,0.00052054,120]
[358237730,1744864244572,-500.0,0.00052054,120]
[358237731,1744864244582,-500.0,0.00052054,120]
[358237732,1744864244591,-1291.27,0.00052054,120]
[358237733,1744864244601,-573.95,0.00052054,120]
[358237734,1744864244610,-1465.71,0.00052054,120]
[358237735,1744864244620,-500.0,0.00052054,120]
[358237736,1744864244629,-500.0,0.00052054,120]
[358237737,1744864244638,-500.0,0.00052054,120]
[358237738,1744864244647,-571.47,0.00052054,120]
[358237739,1744864244656,-500.0,0.00052054,120]
[358237740,1744864244665,-500.0,0.00052054,120]
[358237741,1744864244674,-500.0,0.00052054,120]
[358237742,1744864244683,-500.0,0.00052054,120]
[358237743,1744864244692,-635.67,0.00052054,30]
[358237744,1744864244702,-899.56,0.00052054,120]
[358237745,1744864244711,-500.0,0.00052054,120]
[358237746,1744864244720,-500.0,0.00052054,120]
[358237747,1744864244728,-500.0,0.00052054,120]
[358237748,1744864244737,-500.0,0.00052054,120]
[358237749,1744864244747,-1629.33,0.00052054,120]
[358237750,1744864244756,-500.0,0.00052054,120]
[358237751,1744864244765,-919.25,0.00052054,120]
[358237752,1744864244775,-500.0,0.00052054,120]
[358237753,1744864244784,-500.0,0.00052054,120]
[358237754,1744864244794,-500.0,0.00052054,120]
[358237755,1744864244803,-500.0,0.00052054,120]
[358237756,1744864244813,-500.0,0.00052054,120]
[358237757,1744864244822,-1145.65,0.00052054,120]
[358237758,1744864244831,-500.0,0.00052054,120]
[358237759,1744864244840,-1297.18,0.00052054,120]
[358237760,1744864244850,-529.06,0.00052054,120]
[358237761,1744864244859,-865.03,0.00052054,120]
[358237762,1744864244869,-500.0,0.00052054,120]
[358237763,1744864244878,-843.38,0.00052054,120]
[358237764,1744864244888,-500.0,0.00052054,120]
[358237765,1744864244898,-500.0,0.00052054,120]
[358237766,1744864244907,-500.0,0.00052054,120]
[358237767,1744864244916,-538.08,0.00052054,120]
[358237768,1744864244926,-1716.6,0.00052054,120]
[358237769,1744864244935,-1184.26,0.00052054,120]
[358237770,1744864244944,-500.0,0.00052054,120]
[358237771,1744864244953,-500.0,0.00052054,120]
[358237772,1744864244963,-500.0,0.00052054,120]
[358237773,1744864244972,-500.0,0.00052054,120]
[358237774,1744864244981,-1108.31,0.00052054,120]
[358237775,1744864244991,-500.0,0.00052054,120]
[358237776,1744864245000,-1210.64,0.00052054,120]
[358237777,1744864245010,-320.56232386,0.00052054,120]
[358237778,1744864245020,-500.0,0.00052054,120]
[358237779,1744864245030,-500.0,0.00052054,120]
[358237780,1744864245039,-633.36,0.00052054,120]
[358237781,1744864245049,-895.51,0.00052054,120]
[358237782,1744864245058,-6710.55,0.00052054,120]
[358237783,1744864245067,-1710.65,0.00052054,120]
[358237784,1744864245076,-500.0,0.00052054,120]
[358237785,1744864245086,-681.82,0.00052054,2]
[358237786,1744864245095,-500.0,0.00052054,120]
[358237787,1744864245105,-500.0,0.00052054,120]
[358237788,1744864245115,-1000.0,0.00052054,120]
[358237789,1744864245124,-500.0,0.00052054,120]
[358237790,1744864245134,-500.0,0.00052054,120]
[358237791,1744864245143,-668.56,0.00052054,120]
[358237792,1744864245152,-500.0,0.00052054,120]
[358237793,1744864245162,-1185.27,0.00052054,120]
[358237794,1744864245171,-1724.99,0.00052054,120]
[358237795,1744864245179,-790.37,0.00052054,120]
[358237796,1744864245188,-687.95,0.00052054,120]
[358237797,1744864245198,-500.0,0.00052054,120]
[358237798,1744864245208,-1073.89,0.00052054,120]
[358237799,1744864245218,-601.29524987,0.00052054,120]
[358237800,1744864245228,-500.0,0.00052054,120]
[358237801,1744864245237,-1550.38,0.00052054,120]
[358237802,1744864245247,-500.0,0.00052054,120]
[358237803,1744864245257,-541.82,0.00052054,120]
[358237804,1744864245266,-500.0,0.00052054,120]
[358237805,1744864245276,-500.0,0.00052054,120]
[358237806,1744864245286,-1156.79,0.00052054,120]
[358237807,1744864245295,-500.0,0.00052054,30]
[358237808,1744864245305,-1599.62,0.00052054,120]
[358237809,1744864245315,-500.0,0.00052054,120]
[358237810,1744864245324,-500.0,0.00052054,120]
[358237811,1744864245334,-783.86,0.00052054,120]
[358237812,1744864245343,-781.34,0.00052054,120]
[358237813,1744864245353,-500.0,0.00052054,120]
[358237814,1744864245362,-780.43,0.00052054,120]
[358237815,1744864245372,-1390.59,0.00052054,120]
[358237816,1744864245381,-778.06,0.00052054,120]
[358237817,1744864245391,-500.0,0.00052054,120]
[358237818,1744864245403,-2366.84,0.00052054,120]
[358237819,1744864245413,-500.0,0.00052054,120]
[358237820,1744864245423,-500.0,0.00052054,120]
[358237821,1744864245432,-1026.15,0.00052054,120]
[358237822,1744864245442,-1087.27,0.00052054,120]
[358237823,1744864245451,-500.0,0.00052054,120]
[358237824,1744864245460,-500.0,0.00052054,120]
[358237825,1744864245471,-589.64,0.00052054,120]
[358237826,1744864245480,-1215.89,0.00052054,120]
[358237827,1744864245490,-815.99,0.00052054,120]
[358237828,1744864245500,-500.0,0.00052054,120]
[358237829,1744864245509,-1673.24,0.00052054,120]
[358237830,1744864245520,-1039.13,0.00052054,30]
[358237831,1744864245529,-500.0,0.00052054,120]
[358237832,1744864245538,-2371.48,0.00052054,120]
[358237833,1744864245547,-771.38,0.00052054,120]
[358237834,1744864245557,-690.98,0.00052054,120]
[358237835,1744864245567,-500.0,0.00052054,120]
[358237836,1744864245576,-161.81843447,0.00052054,120]
[358237837,1744864245585,-500.0,0.00052054,120]
[358237838,1744864245595,-500.0,0.00052054,120]
[358237839,1744864245605,-500.0,0.00052054,120]
[358237840,1744864245615,-582.41,0.00052054,120]
[358237841,1744864245625,-1658.76,0.00052054,120]
[358237842,1744864245635,-500.0,0.00052054,120]
[358237843,1744864245645,-500.0,0.00052054,120]
[358237844,1744864245656,-1948.17,0.00052054,120]
[358237845,1744864245665,-829.62,0.00052054,120]
[358237846,1744864245675,-500.0,0.00052054,120]
[358237847,1744864245684,-1972.69,0.00052054,120]
[358237848,1744864245693,-527.89,0.00052054,120]
[358237849,1744864245703,-1451.53,0.00052054,120]
[358237850,1744864245712,-500.0,0.00052054,120]
[358237851,1744864245722,-797.87,0.00052054,120]
[358237852,1744864245732,-522.12,0.00052054,120]
[358237853,1744864245742,-355.25272025,0.00052054,120]
[358237854,1744864245752,-1265.04,0.00052054,120]
[358237855,1744864245761,-500.0,0.00052054,30]
[358237856,1744864245770,-500.0,0.00052054,120]
[358237857,1744864245779,-500.0,0.00052054,120]
[358237858,1744864245788,-601.13,0.00052054,120]
[358237859,1744864245797,-1530.99,0.00052054,120]
[358237860,1744864245807,-500.0,0.00052054,120]
[358237861,1744864245816,-645.24,0.00052054,120]
[358237862,1744864245825,-544.53,0.00052054,120]
[358237863,1744864245834,-500.0,0.00052054,120]
[358237864,1744864245843,-970.97,0.00052054,120]
[358237865,1744864245853,-500.0,0.00052054,120]
[358237866,1744864245862,-1409.79,0.00052054,120]
[358237867,1744864245871,-500.0,0.00052054,120]
[358237868,1744864245881,-500.0,0.00052054,120]
[358237869,1744864245890,-589.03,0.00052054,120]
[358237870,1744864245899,-500.0,0.00052054,120]
[358237871,1744864245908,-500.0,0.00052054,120]
[358237872,1744864245918,-634.23,0.00052054,120]
[358237873,1744864245927,-500.0,0.00052054,120]
[358237874,1744864245937,-636.27,0.00052054,120]
[358237875,1744864245946,-1551.47,0.00052054,120]
[358237876,1744864245955,-863.78,0.00052054,120]
[358237877,1744864245964,-500.0,0.00052054,120]
[358237878,1744864245973,-500.0,0.00052054,120]
[358237879,1744864245983,-713.81,0.00052054,120]
[358237880,1744864245993,-500.0,0.00052054,120]
[358237881,1744864246002,-500.0,0.00052054,120]
[358237882,1744864246011,-1315.87,0.00052054,120]
[358237883,1744864246020,-1830.71,0.00052054,120]
[358237884,1744864246029,-500.0,0.00052054,120]
[358237885,1744864246039,-500.66853145,0.00052054,120]
[358237886,1744864246049,-1255.84,0.00052054,120]
[358237887,1744864246058,-857.08,0.00052054,120]
[358237888,1744864246067,-662.94,0.00052054,120]
[358237889,1744864246077,-500.0,0.00052054,120]
[358237890,1744864246088,-500.0,0.00052054,120]
[358237891,1744864246099,-500.0,0.00052054,120]
[358237892,1744864246109,-500.0,0.00052054,120]
[358237893,1744864246118,-500.0,0.00052054,120]
[358237894,1744864246127,-500.0,0.00052054,120]
[358237895,1744864246136,-619.91,0.00052054,120]
[358237896,1744864246146,-1318.52,0.00052054,120]
[358237897,1744864246156,-500.0,0.00052054,120]
[358237898,1744864246166,-500.0,0.00052054,120]
[358237899,1744864246175,-1050.63,0.00052054,120]
[358237900,1744864246184,-1659.36,0.00052054,120]
[358237901,1744864246193,-517.6,0.00052054,120]
[358237902,1744864246203,-1242.94,0.00052054,120]
[358237903,1744864246212,-500.0,0.00052054,120]
[358237904,1744864246222,-500.0,0.00052054,120]
[358237905,1744864246231,-1738.18,0.00052054,120]
[358237906,1744864246241,-1597.04,0.00052054,120]
[358237907,1744864246250,-500.0,0.00052054,120]
[358237908,1744864246260,-500.0,0.00052054,120]
[358237909,1744864246269,-500.0,0.00052054,120]
[358237910,1744864246278,-500.0,0.00052054,120]
[358237912,1744864246288,-500.0,0.00052054,120]
[358237914,1744864246298,-1202.64,0.00052054,120]
[358237916,1744864246308,-1834.99,0.00052054,120]
[358237918,1744864246317,-500.0,0.00052054,120]
[358237920,1744864246326,-500.0,0.00052054,120]
[358237922,1744864246336,-500.0,0.00052054,120]
[358237924,1744864246345,-521.48,0.00052054,120]
[358237925,1744864246355,-500.0,0.00052054,120]
[358237926,1744864246364,-1692.71,0.00052054,120]
[358237927,1744864246374,-2333.46,0.00052054,120]
[358237928,1744864246383,-2078.61,0.00052054,120]
[358237929,1744864246393,-500.0,0.00052054,120]
[358237930,1744864246611,-676.26,0.00052054,120]
[358237931,1744864246622,-861.56,0.00052054,120]
[358237932,1744864246632,-500.0,0.00052054,120]
[358237933,1744864246642,-500.0,0.00052054,120]
[358237934,1744864246652,-1074.27,0.00052054,120]
[358237935,1744864246662,-500.0,0.00052054,120]
[358237936,1744864246671,-500.0,0.00052054,120]
[358237937,1744864246681,-504.43690969,0.00052054,120]
[358237938,1744864246691,-500.0,0.00052054,120]
[358237939,1744864246701,-500.0,0.00052054,120]
[358237940,1744864246711,-500.0,0.00052054,120]
[358237941,1744864246720,-500.0,0.00052054,120]
[358237942,1744864246730,-500.0,0.00052054,120]
[358237943,1744864246740,-500.0,0.00052054,120]
[358237944,1744864246750,-607.62,0.00052054,120]
[358237945,1744864246759,-500.0,0.00052054,120]
[358237946,1744864246770,-882.12,0.00052054,120]
[358237947,1744864246781,-576.25080737,0.00052054,120]
[358237948,1744864246791,-525.46,0.00052054,120]
[358237950,1744864246800,-500.0,0.00052054,120]
[358237952,1744864246810,-566.37,0.00052054,120]
[358237953,1744864246819,-500.0,0.00052054,120]
[358237955,1744864246829,-500.0,0.00052054,120]
[358237956,1744864246839,-1397.42,0.00052054,120]
[358237957,1744864246849,-500.0,0.00052054,120]
[358237958,1744864246859,-500.0,0.00052054,120]
[358237959,1744864246869,-1614.73,0.00052054,120]
[358237960,1744864246878,-500.0,0.00052054,120]
[358237961,1744864246889,-500.0,0.00052054,120]
[358237962,1744864246899,-500.0,0.00052054,120]
[358237963,1744864246908,-500.0,0.00052054,120]
[358237964,1744864246918,-500.0,0.00052054,120]
[358237965,1744864246928,-1390.05,0.00052054,120]
[358237966,1744864246938,-500.0,0.00052054,120]
[358237967,1744864246947,-500.0,0.00052054,120]
[358237968,1744864246958,-500.0,0.00052054,120]
[358237969,1744864246967,-720.71,0.00052054,120]
[358237970,1744864246977,-545.87,0.00052054,120]
[358237971,1744864246987,-500.0,0.00052054,120]
[358237972,1744864246997,-500.0,0.00052054,120]
[358237973,1744864247007,-1104.63,0.00052054,120]
[358237974,1744864247017,-1238.78,0.00052054,120]
[358237975,1744864247030,-1520.07,0.00052054,120]
[358237976,1744864247040,-500.0,0.00052054,120]
[358237977,1744864247050,-500.0,0.00052054,120]
[358237978,1744864247060,-500.0,0.00052054,120]
[358237979,1744864247070,-500.0,0.00052054,120]
[358237980,1744864247080,-847.8,0.00052054,120]
[358237981,1744864247089,-557.07289585,0.00052054,120]
[358237982,1744864247100,-500.0,0.00052054,120]
[358237983,1744864247110,-570.13,0.00052054,120]
[358237984,1744864247120,-500.0,0.00052054,120]
[358237985,1744864247130,-296.42644172,0.00052054,120]
[358237986,1744864247140,-1854.02,0.00052054,120]
[358237987,1744864247150,-500.0,0.00052054,120]
[358237988,1744864247160,-500.0,0.00052054,120]
[358237989,1744864247170,-693.37,0.00052054,120]
[358237990,1744864247180,-500.0,0.00052054,120]
[358237991,1744864247189,-1012.07,0.00052054,120]
[358237992,1744864247200,-500.0,0.00052054,120]
[358237993,1744864247209,-500.0,0.00052054,120]
[358237994,1744864247219,-616.3,0.00052054,120]
[358237995,1744864247228,-500.0,0.00052054,120]
[358237996,1744864247238,-1010.71,0.00052054,120]
[358237997,1744864247248,-500.0,0.00052054,120]
[358237998,1744864247258,-1871.82,0.00052054,120]
[358237999,1744864247267,-915.93,0.00052054,120]
[358238000,1744864247279,-500.0,0.00052054,120]
[358238001,1744864247288,-500.0,0.00052054,120]
[358238002,1744864247297,-500.0,0.00052054,120]
[358238003,1744864247306,-500.0,0.00052054,120]
[358238004,1744864247315,-819.02,0.00052054,120]
[358238005,1744864247324,-620.46,0.00052054,120]
[358238006,1744864247333,-500.0,0.00052054,120]
[358238007,1744864247342,-880.98,0.00052054,120]
[358238008,1744864247352,-500.0,0.00052054,120]
[358238009,1744864247361,-2744.51,0.00052054,120]
[358238010,1744864247371,-1222.34,0.00052054,120]
[358238011,1744864247381,-500.0,0.00052054,120]
[358238012,1744864247391,-500.0,0.00052054,120]
[358238013,1744864247404,-1346.41,0.00052054,120]
[358238014,1744864247413,-500.0,0.00052054,120]
[358238015,1744864247423,-530.61,0.00052054,120]
[358238016,1744864247431,-1602.54,0.00052054,120]
[358238017,1744864247442,-500.0,0.00052054,120]
[358238018,1744864247452,-1402.26,0.00052054,120]
[358238019,1744864247462,-1009.91,0.00052054,120]
[358238020,1744864247472,-545.22,0.00052054,120]
[358238021,1744864247483,-500.0,0.00052054,120]
[358238022,1744864247493,-500.0,0.00052054,120]
[358238023,1744864247503,-500.0,0.00052054,120]
[358238024,1744864247513,-2555.81,0.00052054,120]
[358238025,1744864247528,-500.0,0.00052054,120]
[358238026,1744864247539,-1685.4,0.00052054,120]
[358238027,1744864247549,-500.0,0.00052054,120]
[358238028,1744864247559,-261.23549694,0.00052054,120]
[358238029,1744864247569,-561.91,0.00052054,120]
[358238030,1744864247579,-500.0,0.00052054,120]
[358238031,1744864247589,-1336.75,0.00052054,120]
[358238032,1744864247598,-780.42,0.00052054,120]
[358238033,1744864247608,-500.0,0.00052054,120]
[358238034,1744864247618,-500.0,0.00052054,120]
[358238035,1744864247629,-500.0,0.00052054,120]
[358238036,1744864247639,-627.33,0.00052054,120]
[358238037,1744864247649,-500.0,0.00052054,120]
[358238038,1744864247659,-500.0,0.00052054,120]
[358238039,1744864247668,-500.0,0.00052054,120]
[358238040,1744864247678,-1186.6,0.00052054,120]
[358238041,1744864247688,-500.0,0.00052054,120]
[358238042,1744864247698,-500.0,0.00052054,120]
[358238043,1744864247708,-887.03,0.00052054,120]
[358238044,1744864247718,-434.14527218,0.00052054,120]
[358238045,1744864247728,-1387.31,0.00052054,120]
[358238046,1744864247738,-500.0,0.00052054,120]
[358238047,1744864247748,-500.0,0.00052054,120]
[358238048,1744864247758,-626.66,0.00052054,120]
[358238049,1744864247769,-500.0,0.00052054,120]
[358238050,1744864247781,-500.0,0.00052054,120]
[358238051,1744864247791,-500.0,0.00052054,120]
[358238052,1744864247801,-500.0,0.00052054,120]
[358238053,1744864247811,-500.0,0.00052054,120]
[358238054,1744864247821,-565.37,0.00052054,120]
[358238055,1744864247830,-500.0,0.00052054,120]
[358238056,1744864247841,-1118.28,0.00052054,120]
[358238057,1744864247850,-500.0,0.00052054,120]
[358238058,1744864247860,-500.0,0.00052054,120]
[358238059,1744864247869,-500.0,0.00052054,120]
[358238060,1744864247879,-500.0,0.00052054,120]
[358238061,1744864247889,-500.0,0.00052054,120]
[358238062,1744864247899,-1747.96,0.00052054,120]
[358238063,1744864247909,-1008.16,0.00052054,120]
[358238064,1744864247919,-896.52,0.00052054,120]
[358238065,1744864247929,-500.0,0.00052054,120]
[358238066,1744864247939,-3118.23,0.00052054,120]
[358238067,1744864247948,-946.71,0.00052054,120]
[358238068,1744864247959,-779.53,0.00052054,120]
[358238069,1744864247969,-500.0,0.00052054,120]
[358238070,1744864247979,-500.0,0.00052054,120]
[358238071,1744864247989,-500.0,0.00052054,120]
[358238072,1744864247998,-2087.29587474,0.00052054,120]
[358238073,1744864248009,-500.0,0.00052054,120]
[358238074,1744864248018,-1837.59,0.00052054,120]
[358238075,1744864248032,-500.0,0.00052054,120]
[358238076,1744864248042,-826.1,0.00052054,120]
[358238077,1744864248052,-566.87,0.00052054,120]
[358238078,1744864248062,-626.45376071,0.00052054,120]
[358238079,1744864248071,-500.0,0.00052054,120]
[358238080,1744864248080,-2125.57,0.00052054,120]
[358238081,1744864248090,-500.0,0.00052054,120]
[358238082,1744864248100,-868.85,0.00052054,120]
[358238083,1744864248109,-996.4,0.00052054,120]
[358238084,1744864248119,-500.0,0.00052054,120]
[358238085,1744864248130,-151.0,0.00052054,120]
[358238086,1744864248140,-500.0,0.00052054,120]
[358238087,1744864248150,-620.84408845,0.00052054,120]
[358238088,1744864248159,-500.0,0.00052054,120]
[358238089,1744864248169,-774.48,0.00052054,120]
[358238090,1744864248179,-500.0,0.00052054,120]
[358238091,1744864248189,-500.0,0.00052054,120]
[358238092,1744864248199,-2597.81,0.00052054,120]
[358238093,1744864248209,-500.0,0.00052054,120]
[358238094,1744864248219,-972.81,0.00052054,118]
[358238095,1744864248229,-1175.01,0.00052054,120]
[358238096,1744864248240,-500.0,0.00052054,120]
[358238097,1744864248249,-500.0,0.00052054,120]
[358238098,1744864248259,-500.0,0.00052054,120]
[358238099,1744864248270,-500.0,0.00052054,120]
[358238100,1744864248282,-500.0,0.00052054,120]
[358238101,1744864248292,-233.955561,0.00052054,120]
[358238102,1744864248301,-151.0,0.00052054,120]
[358238103,1744864248311,-605.32,0.00052054,120]
[358238104,1744864248321,-500.0,0.00052054,120]
[358238105,1744864248331,-1147.05,0.00052054,120]
[358238106,1744864248340,-978.97,0.00052054,8]
[358238107,1744864248350,-500.0,0.00052054,120]
[358238108,1744864248360,-500.0,0.00052054,120]
[358238109,1744864248369,-780.87,0.00052054,120]
[358238110,1744864248379,-304.75225713,0.00052054,120]
[358238111,1744864248389,-500.0,0.00052054,120]
[358238112,1744864248401,-500.0,0.00052054,120]
[358238113,1744864248410,-1041.08,0.00052054,120]
[358238114,1744864248420,-992.26,0.00052054,120]
[358238115,1744864248429,-909.8,0.00052054,120]
[358238116,1744864248439,-3525.71,0.00052054,120]
[358238117,1744864248449,-661.81,0.00052054,120]
[358238118,1744864248459,-620.51,0.00052054,120]
[358238119,1744864248469,-500.0,0.00052054,120]
[358238120,1744864248479,-500.0,0.00052054,120]
[358238121,1744864248491,-500.0,0.00052054,120]
[358238122,1744864248502,-500.0,0.00052054,120]
[358238123,1744864248512,-746.85,0.00052054,120]
[358238124,1744864248521,-1435.32,0.00052054,120]
[358238125,1744864248533,-500.0,0.00052054,120]
[358238126,1744864248543,-2600.66,0.00052054,120]
[358238127,1744864248553,-500.0,0.00052054,120]
[358238128,1744864248563,-1683.98,0.00052054,120]
[358238129,1744864248574,-500.0,0.00052054,120]
[358238130,1744864248584,-500.0,0.00052054,120]
[358238131,1744864248595,-801.2,0.00052054,120]
[358238132,1744864248605,-500.0,0.00052054,120]
[358238133,1744864248616,-500.0,0.00052054,120]
[358238134,1744864248626,-500.0,0.00052054,120]
[358238135,1744864248636,-939.46,0.00052054,120]
[358238136,1744864248646,-500.0,0.00052054,120]
[358238137,1744864248656,-630.09,0.00052054,120]
[358238138,1744864248666,-500.0,0.00052054,120]
[358238139,1744864248676,-500.0,0.00052054,120]
[358238140,1744864248687,-861.37,0.00052054,120]
[358238141,1744864248697,-155.379221,0.00052054,120]
[358238142,1744864248707,-160.60454,0.00052054,120]
[358238143,1744864248717,-155.379221,0.00052054,120]
[358238144,1744864248727,-500.0,0.00052054,120]
[358238145,1744864248737,-500.0,0.00052054,120]
[358238146,1744864248748,-753.51,0.00052054,120]
[358238147,1744864248758,-500.0,0.00052054,120]
[358238148,1744864248768,-593.89,0.00052054,120]
[358238149,1744864248778,-151.0,0.00052054,120]
[358238150,1744864248788,-500.0,0.00052054,120]
[358238151,1744864248798,-500.0,0.00052054,120]
[358238152,1744864248808,-1201.97,0.00052054,120]
[358238153,1744864248818,-500.0,0.00052054,120]
[358238154,1744864248828,-500.0,0.00052054,120]
[358238155,1744864248838,-554.79,0.00052054,120]
[358238156,1744864248848,-559.83,0.00052054,120]
[358238157,1744864248858,-1198.79,0.00052054,120]
[358238158,1744864248868,-1567.31,0.00052054,120]
[358238159,1744864248878,-865.17,0.00052054,120]
[358238160,1744864248888,-6623.27,0.00052054,120]
[358238161,1744864248897,-500.0,0.00052054,120]
[358238162,1744864248907,-500.0,0.00052054,120]
[358238163,1744864248917,-1000.0,0.00052054,120]
[358238164,1744864248927,-545.32,0.00052054,120]
[358238165,1744864248937,-739.0,0.00052054,120]
[358238166,1744864248947,-1317.08,0.00052054,120]
[358238167,1744864248958,-678.98,0.00052054,120]
[358238168,1744864248968,-500.0,0.00052054,120]
[358238169,1744864248978,-500.0,0.00052054,120]
[358238170,1744864248988,-2504.97,0.00052054,120]
[358238171,1744864248998,-707.26,0.00052054,120]
[358238172,1744864249008,-500.0,0.00052054,120]
[358238173,1744864249018,-500.0,0.00052054,120]
[358238174,1744864249102,-500.0,0.00052054,120]
[358238175,1744864249112,-500.0,0.00052054,120]
[358238176,1744864249122,-500.0,0.00052054,120]
[358238177,1744864249132,-500.0,0.00052054,120]
[358238178,1744864249143,-500.0,0.00052054,120]
[358238179,1744864249154,-500.0,0.00052054,120]
[358238180,1744864249164,-1683.9,0.00052054,120]
[358238181,1744864249174,-500.0,0.00052054,120]
[358238182,1744864249185,-500.0,0.00052054,120]
[358238183,1744864249195,-500.0,0.00052054,120]
[358238184,1744864249205,-500.0,0.00052054,120]
[358238185,1744864249215,-500.0,0.00052054,120]
[358238186,1744864249225,-500.0,0.00052054,120]
[358238187,1744864249236,-500.0,0.00052054,120]
[358238188,1744864249245,-608.51,0.00052054,120]
[358238189,1744864249255,-646.45583617,0.00052054,120]
[358238190,1744864249265,-2707.66,0.00052054,120]
[358238191,1744864249276,-500.0,0.00052054,120]
[358238192,1744864249286,-811.92,0.00052054,120]
[358238193,1744864249296,-514.58,0.00052054,120]
[358238194,1744864249306,-500.0,0.00052054,120]
[358238195,1744864249316,-500.0,0.00052054,120]
[358238196,1744864249326,-500.0,0.00052054,120]
[358238197,1744864249336,-500.0,0.00052054,120]
[358238198,1744864249346,-612.46,0.00052054,120]